bitfinex/quotes_ETHUSD_20260214
["timestamp","ask_amount","ask_price","bid_price","bid_amount"]
[1771058957302,0.0011,2085.2,2084.4,2.463]
[1771058957614,0.0011,2085.2,2084.3,3.15837271]
[1771058957814,0.0011,2085.2,2084.1,19.722]
[1771058958016,0.0011,2085.2,2084.0,6.82097416]
[1771058958218,0.0011,2085.2,2084.1,3.15837271]
[1771058958513,3.14728727,2085.2,2084.0,29.75837271]
[1771058958730,3.14728727,2085.2,2084.0,3.15837271]
[1771058958901,3.14618727,2084.8,2083.2,30.95844951]
[1771058959088,3.14618727,2084.6,2083.3,26.6]
[1771058960419,3.14618727,2084.3,2083.1,2.083]
[1771058960810,3.14618727,2084.2,2082.9,0.864]
[1771058960995,3.14618727,2084.2,2083.0,26.6]
[1771058961200,4.62518727,2084.2,2082.9,2.06424863]
[1771058961518,4.62518727,2084.2,2082.9,2.06424174]
[1771058961716,1.479,2084.2,2083.2,26.6]
[1771058961919,0.864,2084.3,2083.3,11.095]
[1771058962124,0.864,2084.3,2083.2,3.15837271]
[1771058962420,1.19955856,2084.1,2082.9,6.82160767]
[1771058962798,6.74674583,2084.1,2082.9,2.463]
[1771058963002,3.60055856,2084.1,2083.0,3.15837271]
[1771058964123,3.60055856,2084.1,2082.9,3.66322258]
[1771058964291,3.60055856,2084.1,2082.9,2.463]
[1771058964491,6.74674583,2084.1,2082.9,1.20024964]
[1771058964691,6.74674583,2084.1,2082.7,6.82169635]
[1771058965496,3.14618727,2084.0,2082.7,6.82169635]
[1771058966615,1.19967368,2083.9,2082.7,6.82169635]
[1771058966800,1.19967368,2083.9,2082.7,6.82173207]
[1771058967400,1.19967368,2083.9,2082.8,3.15837271]
[1771058967613,1.19967368,2083.9,2082.9,3.15837271]
[1771058968024,1.19967368,2083.9,2082.7,3.66335936]
[1771058968025,3.14618727,2083.8,2082.7,3.6633636]
[1771058968401,1.19967368,2083.9,2082.8,3.15837271]
[1771058968600,4.79869475,2084.0,2083.1,1.20013441]
[1771058968824,4.79869475,2084.0,2083.0,3.15837271]
[1771058969027,4.79869475,2084.0,2083.1,3.15837271]
[1771058969230,4.79869475,2084.0,2083.0,1.20018398]
[1771058969231,2.401,2084.1,2083.3,3.15837271]
[1771058969419,2.06349069,2084.3,2083.3,3.15837271]
[1771058969623,1.19936788,2084.5,2083.7,3.15837271]
[1771058969931,1.19915579,2084.8,2083.9,3.15837271]
[1771058970630,1.19915579,2084.8,2084.0,1.19961612]
[1771058971025,1.19915579,2084.8,2083.9,3.15837271]
[1771058971202,3.15047903,2084.7,2083.2,6.73791041]
[1771058971409,3.15047903,2084.7,2083.2,5.53787636]
[1771058971604,3.15047903,2084.6,2083.3,3.07487636]
[1771058972751,3.15047903,2084.4,2083.2,3.6630715]
[1771058973437,2.398,2084.3,2083.2,2.463]
[1771058973634,5.54847903,2084.3,2083.3,3.82]
[1771058974434,3.15047903,2084.2,2083.4,3.82]
[1771058974638,1.199501,2084.2,2083.5,3.82]
[1771058976640,1.199501,2084.2,2083.5,5.01989252]
[1771058977040,1.199501,2084.2,2083.5,3.82]
[1771058979541,3.15047903,2084.1,2083.0,0.864]
[1771058979748,3.0333424,2084.0,2082.6,0.001]
[1771058980129,3.0333424,2083.7,2082.6,0.001]
[1771058980307,3.0333424,2083.5,2082.6,0.001]
[1771058981133,1.199904,2083.5,2082.6,0.001]
[1771058981331,3.595904,2083.5,2082.6,2.93296469]
[1771058982023,3.595904,2083.5,2082.6,0.001]
[1771058982550,6.6292464,2083.5,2082.6,0.001]
[1771058982757,3.595904,2083.5,2082.6,0.001]
[1771058984851,3.0333424,2083.4,2082.6,0.001]
[1771058985229,4.2333616,2083.3,2082.6,0.001]
[1771058985871,3.0333424,2083.2,2082.6,0.001]
[1771058986021,3.0333424,2083.2,2082.1,0.864]
[1771058986225,3.0333424,2083.2,2081.9,0.001]
[1771058986527,14.94523454,2083.2,2081.9,0.001]
[1771058986739,3.0333424,2083.1,2081.9,0.001]
[1771058987054,6.2913424,2083.0,2081.9,0.001]
[1771058987270,1.20024965,2082.9,2081.9,0.001]
[1771058987477,1.20024965,2082.9,2082.3,0.001]
[1771058987984,3.0333424,2082.8,2082.3,0.001]
[1771058988136,3.0333424,2082.8,2081.3,2.93196469]
[1771058989146,3.0333424,2082.6,2081.0,0.001]
[1771058989468,3.0333424,2082.1,2081.0,0.001]
[1771058989840,3.0333424,2081.9,2081.0,0.001]
[1771058990838,2.394,2082.0,2081.0,0.001]
[1771058990839,3.0333424,2081.7,2081.0,0.001]
[1771058991065,3.0333424,2081.6,2081.0,0.001]
[1771058991366,2.395,2081.5,2081.0,0.001]
[1771058991588,2.50099923,2081.7,2081.0,0.001]
[1771058991759,1.20096421,2081.7,2081.0,0.001]
[1771058992086,7.83592684,2082.3,2081.0,0.001]
[1771058992087,1.20048019,2082.5,2081.3,2.93196469]
[1771058992250,4.79954561,2083.6,2082.2,2.93196469]
[1771058992451,4.79954561,2083.6,2082.4,2.93196469]
[1771058992452,0.92659003,2083.5,2082.4,2.93196469]
[1771058992652,1.19961612,2084.1,2082.8,2.93196469]
[1771058992982,1.19961612,2084.1,2083.0,26.6]
[1771058993282,1.19961612,2084.1,2082.5,29.53196469]
[1771058993488,1.19961612,2084.1,2082.8,2.93196469]
[1771058993687,4.79815928,2084.2,2082.9,4.13221434]
[1771058993854,4.79815928,2084.2,2082.9,2.93196469]
[1771058994256,7.83150168,2084.2,2082.7,1.2003303]
[1771058994554,3.0333424,2084.1,2082.5,2.93196469]
[1771058994754,3.0333424,2084.1,2082.5,4.132404]
[1771058994955,3.0333424,2084.0,2082.2,4.13257978]
[1771058995654,3.0333424,2083.6,2082.2,4.13257978]
[1771058995888,0.492,2083.5,2082.2,4.13257978]
[1771058996585,0.9,2083.4,2082.2,4.13257978]
[1771058997467,0.492,2083.5,2082.2,4.13257978]
[1771058997777,1.1999616,2083.4,2082.2,4.13257978]
[1771058999370,1.1999616,2083.4,2082.3,2.93196469]
[1771059000078,1.1999616,2083.4,2082.4,1.20053784]
[1771059000398,4.233304,2083.4,2082.1,3.66467356]
[1771059000568,1.69194504,2083.5,2082.5,2.93196469]
[1771059000773,4.72528744,2083.5,2082.2,2.93196469]
[1771059001085,0.9,2083.3,2082.1,3.66467356]
[1771059001286,4.13005221,2083.3,2082.1,2.464]
[1771059001491,3.23005221,2083.2,2081.9,2.06477038]
[1771059001696,3.23005221,2083.2,2081.9,0.864]
[1771059001858,3.23005221,2083.1,2081.5,3.66503069]
[1771059002214,3.23005221,2082.9,2081.3,1.20113963]
[1771059002366,3.23005221,2082.7,2081.2,2.15819056]
[1771059003284,3.23005221,2082.7,2081.2,0.957]
[1771059003489,3.23005221,2082.5,2081.0,2.0663188]
[1771059003694,3.23005221,2082.2,2081.0,0.001]
[1771059003861,3.23005221,2082.0,2081.0,0.001]
[1771059004056,1.20082616,2081.9,2081.0,0.001]
[1771059005967,1.20094153,2081.7,2081.0,0.001]
[1771059006364,4.43099374,2081.7,2081.0,0.001]
[1771059007100,4.43099374,2081.7,2080.7,0.001]
[1771059007469,1.20094153,2081.7,2080.7,0.001]
[1771059007665,4.43099374,2081.7,2080.7,0.001]
[1771059007897,3.23005221,2081.6,2080.7,0.001]
[1771059008207,3.23005221,2081.4,2080.5,0.001]
[1771059008499,6.48305221,2081.3,2080.5,0.001]
[1771059008668,0.44565724,2081.2,2080.0,1.47520295]
[1771059008863,0.44565724,2081.1,2080.0,1.47520295]
[1771059009108,0.44565724,2081.0,2080.0,1.47520295]
[1771059009312,0.44565724,2080.9,2080.0,1.47520295]
[1771059009600,0.44565724,2080.8,2080.0,1.47520295]
[1771059009796,0.44565724,2080.7,2080.0,0.27328245]
[1771059009999,6.48305221,2081.3,2079.9,0.864]
[1771059010000,0.44565724,2080.6,2079.9,0.864]
[1771059010204,1.64729146,2080.5,2079.9,2.06597404]
[1771059010371,0.44565724,2080.4,2079.8,0.001]
[1771059010686,0.44565724,2080.3,2079.8,0.001]
[1771059011006,0.44565724,2080.2,2079.8,0.001]
[1771059011208,0.44565724,2080.1,2079.8,0.001]
[1771059011377,0.44565724,2080.0,2079.8,0.001]
[1771059011575,0.44565724,2079.9,2079.8,0.001]
[1771059011879,0.44565724,2079.9,2079.6,0.001]
[1771059012185,0.44565724,2079.8,2079.6,0.001]
[1771059012392,0.44565724,2079.7,2079.6,0.001]
[1771059013168,3.58686546,2080.1,2079.6,0.001]
[1771059014073,3.5868815,2080.1,2079.6,0.001]
[1771059014288,3.58686613,2080.1,2079.6,0.001]
[1771059014892,2.385,2080.1,2079.6,0.001]
[1771059015098,4.80709011,2080.3,2079.6,0.001]
[1771059015099,0.865,2080.8,2079.6,2.92749697]
[1771059015313,2.383,2080.7,2079.6,2.92749697]
[1771059015988,2.383,2080.7,2079.6,0.001]
[1771059016197,1.20157646,2080.6,2079.6,0.001]
[1771059016575,2.383,2081.1,2079.7,2.92649697]
[1771059016979,3.23005221,2081.0,2079.6,0.001]
[1771059017294,2.383,2081.1,2079.6,0.001]
[1771059017295,4.13005221,2080.9,2079.6,0.001]
[1771059017695,4.13005221,2080.9,2079.6,2.92749697]
[1771059018289,1.20146097,2080.8,2079.7,1.20209645]
[1771059020402,1.20146097,2080.8,2079.8,2.92649697]
[1771059021897,1.20146097,2080.8,2079.7,1.20209645]
[1771059022278,2.10141704,2080.9,2079.9,2.92649697]
[1771059022478,2.10141704,2080.9,2079.8,1.20203865]
[1771059023811,2.10141704,2080.9,2079.7,1.20205696]
[1771059024011,2.10141704,2080.9,2079.8,2.92649697]
[1771059024184,5.33146925,2080.9,2079.7,1.20205696]
[1771059024504,3.23005221,2080.8,2079.6,4.80938916]
[1771059025273,0.4440581,2080.7,2079.6,4.80938916]
[1771059025478,0.4440581,2080.6,2079.6,7.73588613]
[1771059025679,0.4440581,2080.5,2079.6,7.73588613]
[1771059025911,0.4440581,2080.4,2079.7,2.92649697]
[1771059026135,0.4440581,2080.3,2079.7,2.92649697]
[1771059026337,0.4440581,2080.2,2079.7,2.92649697]
[1771059026608,0.4440581,2080.1,2079.7,2.92649697]
[1771059026838,0.4440581,2080.0,2079.8,1.20203865]
[1771059027127,1.20163539,2080.5,2079.8,1.20203865]
[1771059027316,1.20163539,2080.5,2079.6,1.20310506]
[1771059027820,3.23005221,2080.4,2079.6,0.001]
[1771059027997,1.20163539,2080.5,2079.6,1.20314657]
[1771059028502,1.20163539,2080.5,2079.6,1.20313615]
[1771059028702,1.20163539,2080.5,2079.6,0.001]
[1771059030426,3.23005221,2080.4,2079.6,0.001]
[1771059030787,1.20174974,2080.3,2079.6,0.001]
[1771059031838,1.20166183,2080.5,2079.6,3.02211163]
[1771059032389,0.9,2080.3,2079.6,2.24006487]
[1771059033796,0.9,2080.3,2079.6,3.44217336]
[1771059033993,2.10176458,2080.3,2079.5,1.20216933]
[1771059034186,1.20125728,2081.2,2080.0,3.02111163]
[1771059034385,2.28725728,2081.2,2080.0,3.02111163]
[1771059034798,1.086,2081.2,2080.0,3.02111163]
[1771059034998,1.086,2081.2,2079.9,16.24538106]
[1771059034999,1.086,2081.2,2080.3,3.02111163]
[1771059035619,1.086,2081.2,2080.4,1.20169198]
[1771059036001,1.086,2081.2,2080.4,4.22280361]
[1771059037024,0.0011,2081.3,2080.5,3.02111163]
[1771059037209,0.0011,2081.3,2080.7,3.02111163]
[1771059037391,0.0011,2081.1,2080.7,3.02111163]
[1771059037791,0.0011,2081.1,2080.8,1.20146097]
[1771059039126,0.0011,2081.1,2080.4,4.22276214]
[1771059039903,0.0011,2081.1,2080.5,3.10324386]
[1771059040129,1.2018944,2082.0,2081.0,3.10324386]
[1771059040424,1.20186881,2082.0,2081.0,3.10324386]
[1771059040623,0.0011,2082.0,2081.0,3.10324386]
[1771059041495,1.20209057,2081.7,2080.7,3.10324386]
[1771059041692,1.20209057,2081.7,2080.5,2.467]
[1771059041913,1.20209057,2081.7,2080.6,3.10324386]
[1771059042116,1.20209057,2081.7,2080.7,5.02151871]
[1771059042316,4.31137863,2081.7,2080.6,5.0215369]
[1771059042829,1.20209057,2081.7,2080.7,3.10324386]
[1771059043119,4.31137863,2081.7,2080.6,1.2015369]
[1771059043342,3.10928806,2081.6,2080.4,4.30489986]
[1771059044144,1.20105693,2081.5,2080.4,1.201656]
[1771059047261,3.10928806,2081.4,2080.3,3.66871265]
[1771059048161,3.10928806,2081.4,2080.4,0.04806767]
[1771059048620,4.3104554,2081.4,2080.5,1.20163422]
[1771059053063,3.97538806,2081.7,2080.5,4.30487808]
[1771059053365,5.17637348,2081.7,2080.6,3.1513069]
[1771059053724,5.17637348,2081.7,2080.7,1.20151871]
[1771059054260,3.10928806,2081.6,2080.7,1.20151871]
[1771059056240,1.20105693,2081.5,2080.7,1.20151871]
[1771059056552,3.10928806,2081.4,2080.5,5.02160531]
[1771059058460,1.20107703,2081.5,2080.5,4.30484917]
[1771059058636,1.20104345,2081.6,2080.5,4.30484917]
[1771059059175,1.20104345,2081.6,2080.6,3.10324386]
[1771059060234,3.10928806,2081.5,2080.5,1.20160531]
[1771059060431,3.10928806,2081.3,2080.4,3.6676635]
[1771059060743,3.10928806,2081.1,2080.0,0.001]
[1771059062237,3.08230882,2080.9,2080.0,0.001]
[1771059062464,3.08230882,2080.6,2080.0,0.001]
[1771059062665,5.43530882,2080.5,2080.0,0.001]
[1771059062898,3.08230882,2080.4,2080.0,0.001]
[1771059063046,3.08230882,2080.4,2079.8,0.001]
[1771059063247,3.08230882,2080.4,2079.4,0.001]
[1771059064241,3.08230882,2080.4,2080.0,0.001]
[1771059064578,3.08230882,2080.4,2079.4,0.001]
[1771059064579,3.08230882,2080.2,2079.4,0.001]
[1771059064745,3.08230882,2080.2,2079.6,0.001]
[1771059065071,3.08230882,2080.2,2078.8,1.20357494]
[1771059066168,3.08230882,2080.2,2078.8,0.001]
[1771059066356,3.08230882,2080.2,2078.8,1.20360976]
[1771059066562,3.08230882,2080.0,2078.8,0.001]
[1771059066742,3.08230882,2079.8,2078.8,0.001]
[1771059068240,3.08230882,2079.7,2078.8,0.001]
[1771059068752,3.08230882,2079.5,2078.8,0.001]
[1771059071057,1.20226988,2079.4,2078.8,0.001]
[1771059071258,2.35,2079.3,2078.8,0.001]
[1771059071974,2.349,2079.4,2078.8,0.001]
[1771059074174,3.55127446,2079.4,2078.8,0.001]
[1771059074777,3.55127389,2079.4,2078.8,0.001]
[1771059075179,2.349,2079.4,2078.8,0.001]
[1771059075484,3.55127163,2079.4,2078.8,0.001]
[1771059076756,2.349,2079.4,2078.8,0.001]
[1771059078086,2.349,2079.4,2078.8,2.95326061]
[1771059078388,0.866,2079.6,2078.8,2.95326061]
[1771059080385,0.866,2079.6,2079.0,2.95226061]
[1771059080586,1.082,2079.9,2079.0,2.95226061]
[1771059080879,1.082,2079.9,2079.3,0.00145]
[1771059081382,2.28398646,2079.9,2079.3,3.82145]
[1771059081693,1.082,2079.9,2079.3,3.82145]
[1771059081898,2.2839843,2079.9,2079.3,3.82145]
[1771059082272,1.082,2079.9,2079.3,3.82145]
[1771059082472,1.082,2079.9,2079.3,5.02377301]
[1771059084083,1.082,2079.9,2079.3,3.82145]
[1771059084286,1.082,2079.9,2079.3,5.02377552]
[1771059084994,2.28401403,2079.9,2079.3,3.82145]
[1771059085206,2.28401403,2079.9,2079.3,0.00145]
[1771059085770,2.28401403,2079.9,2079.3,1.20377683]
[1771059085988,2.28401403,2079.9,2079.3,0.00145]
[1771059086795,5.36632285,2079.9,2079.3,0.00145]
[1771059087798,5.36632285,2079.9,2079.0,1.20401169]
[1771059087799,3.08230882,2079.8,2079.0,0.00155]
[1771059087970,3.08230882,2079.6,2078.8,0.001]
[1771059088171,3.08230882,2079.5,2078.8,0.001]
[1771059089083,3.08230882,2079.3,2078.8,0.001]
[1771059089284,2.339,2079.2,2078.8,0.001]
[1771059089996,2.339,2079.2,2079.0,0.001]
[1771059090590,0.866,2079.6,2079.0,2.95326061]
[1771059090914,2.06816177,2079.6,2079.0,0.001]
[1771059091107,4.96039579,2079.6,2079.0,0.001]
[1771059091914,2.06816177,2079.6,2079.0,0.001]
[1771059092214,0.866,2079.6,2079.0,0.001]
[1771059092790,2.06815821,2079.6,2079.0,0.001]
[1771059093002,4.96039223,2079.6,2079.0,0.001]
[1771059093204,0.866,2079.6,2079.0,0.001]
[1771059093923,2.06815825,2079.6,2079.0,0.001]
[1771059094781,4.96039227,2079.6,2079.0,0.001]
[1771059094986,2.89223402,2079.5,2079.0,0.001]
[1771059095684,1.20226988,2079.4,2079.0,0.001]
[1771059095890,4.09448643,2079.5,2079.0,0.001]
[1771059096091,0.866,2079.6,2079.0,0.001]
[1771059096092,2.06819994,2079.6,2079.0,0.001]
[1771059098318,0.866,2079.6,2079.0,0.001]
[1771059098503,0.866,2079.6,2079.0,3.01887265]
[1771059098824,0.866,2079.6,2079.0,0.001]
[1771059100486,1.20186529,2080.1,2079.1,2.91917825]
[1771059101327,0.0011,2079.9,2079.1,2.91917825]
[1771059102520,0.0011,2079.9,2079.2,1.20238553]
[1771059102720,0.0011,2079.9,2079.3,2.91917825]
[1771059104501,0.0011,2079.9,2079.5,2.91917825]
[1771059105328,0.0011,2080.4,2079.8,2.91917825]
[1771059105499,0.0011,2080.4,2079.9,2.91917825]
[1771059105699,0.0011,2080.4,2080.0,2.91917825]
[1771059106734,0.0011,2080.4,2080.1,4.12104354]
[1771059108264,0.0011,2080.4,2080.1,1.20186529]
[1771059108751,0.0022,2080.5,2080.1,2.91917825]
[1771059108908,1.20105693,2081.5,2080.1,2.91917825]
[1771059108909,3.9281498,2081.4,2080.1,2.91917825]
[1771059109108,0.0022,2080.7,2080.1,2.91917825]
[1771059110865,0.0022,2080.7,2080.2,1.20180751]
[1771059111029,0.0022,2080.6,2079.9,1.20198086]
[1771059111347,0.0022,2080.7,2079.9,4.12115911]
[1771059113141,0.0022,2080.6,2079.9,4.12115911]
[1771059113345,0.0022,2080.7,2079.9,4.12115911]
[1771059113839,0.0022,2080.7,2079.9,7.94115911]
[1771059114153,0.0022,2080.6,2080.0,2.91917825]
[1771059114349,0.0022,2080.7,2080.0,2.91917825]
[1771059114721,0.0022,2080.7,2079.9,5.02198086]
[1771059114927,0.0022,2080.6,2079.9,5.02198086]
[1771059115252,0.0022,2080.7,2079.9,5.02198086]
[1771059115458,4.06955303,2080.9,2079.9,7.94115911]
[1771059115617,0.0022,2080.7,2079.9,7.94115911]
[1771059116119,1.20140323,2080.9,2080.0,2.91917825]
[1771059116320,0.0022,2080.7,2080.0,2.91917825]
[1771059116945,0.0022,2080.6,2080.0,2.91917825]
[1771059117128,0.0022,2080.7,2079.9,5.02198086]
[1771059117326,4.06955303,2080.9,2079.9,5.02198086]
[1771059117530,0.0022,2080.7,2079.9,5.02198086]
[1771059118522,0.0022,2080.6,2079.9,5.02198086]
[1771059118749,0.0022,2080.7,2079.9,5.02198086]
[1771059119941,0.0022,2080.7,2079.9,7.94115911]
[1771059120150,0.0022,2080.7,2080.0,2.91917825]
[1771059120448,2.8681498,2080.9,2080.0,2.91917825]
[1771059120643,0.0022,2080.7,2080.1,2.91917825]
[1771059121647,0.0022,2080.6,2080.1,2.91917825]
[1771059121954,0.0011,2081.0,2080.2,1.20180751]
[1771059122152,2.74956359,2080.8,2080.1,1.20182338]
[1771059122455,0.0022,2080.7,2080.1,1.20182338]
[1771059122621,0.0022,2080.7,2080.0,5.02188909]
[1771059122821,0.0022,2080.6,2080.0,5.02188909]
[1771059123068,0.0022,2080.7,2080.0,5.02188909]
[1771059124851,0.0022,2080.6,2080.0,7.77452259]
[1771059125054,0.0022,2080.7,2080.1,2.7526335]
[1771059125953,0.0022,2080.6,2080.1,2.7526335]
[1771059126252,0.0022,2080.7,2080.2,3.82]
[1771059126652,0.0011,2080.8,2080.2,3.82]
[1771059126861,0.0022,2080.7,2080.3,1.20174974]
[1771059127024,0.0022,2080.7,2080.3,5.02174974]
[1771059127223,0.0011,2080.8,2080.4,2.7526335]
[1771059127424,0.0022,2080.7,2080.3,7.45274974]
[1771059127836,0.0022,2080.7,2080.3,10.20538324]
[1771059128336,2.75066359,2080.6,2079.8,4.80792345]
[1771059128557,0.0011,2080.8,2079.8,7.56055695]
[1771059128558,0.0022,2080.7,2079.8,7.56055695]
[1771059129229,0.0022,2080.7,2079.9,2.7526335]
[1771059130960,0.0022,2080.7,2080.0,1.20192307]
[1771059131952,0.0022,2080.6,2080.1,2.7526335]
[1771059132128,0.0022,2080.6,2080.0,1.20192307]
[1771059132129,0.0033,2080.8,2080.2,5.1846335]
[1771059132332,0.0033,2080.8,2080.3,2.7526335]
[1771059132670,0.0011,2081.0,2080.4,2.7526335]
[1771059133533,0.0011,2081.0,2080.4,1.20165005]
[1771059134531,0.0011,2081.0,2080.4,3.95428355]
[1771059135532,0.0011,2081.0,2080.4,7.77428355]
[1771059135862,0.0011,2081.0,2080.4,3.95428355]
[1771059136035,0.0011,2081.0,2080.4,1.20165005]
[1771059139668,0.0011,2081.0,2080.4,3.95428355]
[1771059139866,0.0011,2081.0,2080.5,2.7526335]
[1771059140947,0.0011,2081.0,2080.3,7.45370992]
[1771059141170,2.74956359,2081.0,2080.3,7.45370992]
[1771059142275,3.95092736,2081.0,2080.3,7.45370992]
[1771059143274,2.74956359,2081.0,2080.3,7.45370992]
[1771059143570,0.0011,2081.0,2080.3,10.20634342]
[1771059146553,0.0011,2081.0,2080.3,7.45370992]
[1771059146753,0.0011,2081.0,2080.4,3.82]
[1771059147448,0.0011,2081.0,2080.5,2.7526335]
[1771059149089,0.0011,2081.0,2080.5,1.20163422]
[1771059150262,0.0011,2081.0,2080.4,5.02165061]
[1771059150869,2.74956359,2081.0,2080.4,5.02168428]
[1771059151186,2.6953901,2080.9,2080.4,5.0216845]
[1771059151381,3.89788121,2081.0,2080.4,3.82]
[1771059151556,0.0011,2081.0,2080.4,5.02169189]
[1771059152067,1.20245039,2081.0,2080.4,5.02169189]
[1771059152668,1.20245039,2081.0,2080.5,3.82]
[1771059153581,3.89784049,2081.0,2080.5,3.82]
[1771059153786,2.6953901,2080.9,2080.5,3.82]
[1771059155575,2.6953901,2080.9,2080.5,5.02163364]
[1771059155765,0.0011,2081.0,2080.5,5.02163364]
[1771059156294,3.89784461,2081.0,2080.5,3.82]
[1771059157066,2.6953901,2080.9,2080.5,3.82]
[1771059157762,3.89683706,2080.9,2080.5,3.82]
[1771059157968,3.89683706,2080.9,2080.3,5.0217454]
[1771059158882,0.0011,2081.0,2080.3,5.0217454]
[1771059159466,0.0011,2081.0,2080.3,7.86361349]
[1771059160076,0.0011,2081.0,2080.4,2.70744158]
[1771059160402,0.0011,2081.0,2080.4,6.52744158]
[1771059161202,2.64088289,2081.0,2080.4,3.82]
[1771059161389,2.64088289,2081.0,2080.2,7.46479755]
[1771059161768,0.0011,2081.0,2080.3,2.70744158]
[1771059162275,0.0011,2081.0,2080.4,3.90913356]
[1771059162964,0.0011,2081.0,2080.4,1.20169198]
[1771059163165,2.64088289,2081.0,2080.3,1.2017096]
[1771059164166,3.84223227,2081.0,2080.3,1.2017096]
[1771059164568,2.64088289,2081.0,2080.3,1.2017096]
[1771059165404,3.84223063,2081.0,2080.3,1.2017096]
[1771059165709,2.64088289,2081.0,2080.3,1.2017096]
[1771059166922,0.0011,2081.0,2080.4,15.71056861]
[1771059167125,0.0011,2081.0,2080.6,15.71056861]
[1771059168411,0.0011,2081.0,2080.6,13.00312703]
[1771059168903,0.0011,2081.0,2080.7,1.20151871]
[1771059170911,0.0011,2081.0,2080.7,3.90896029]
[1771059171112,0.0011,2081.0,2080.7,7.72896029]
[1771059171619,0.0011,2081.2,2080.7,7.72896029]
[1771059171780,0.0011,2081.2,2080.8,2.70744158]
[1771059171990,0.0011,2081.2,2080.9,6.277]
[1771059172901,0.0011,2081.2,2081.0,1.2013455]
[1771059176022,0.0011,2081.2,2081.1,3.82]
[1771059176218,0.0011,2081.6,2081.1,3.82]
[1771059177323,0.0011,2081.6,2081.2,1.20123005]
[1771059177528,0.0011,2081.5,2081.2,1.20123005]
[1771059177689,0.0011,2081.5,2081.2,3.66623005]
[1771059180416,0.0011,2081.5,2081.3,2.70744158]
[1771059180618,0.0011,2081.5,2081.2,7.48623005]
[1771059181116,0.0011,2081.5,2081.2,6.285]
[1771059181320,2.66659531,2081.5,2081.2,3.82]
[1771059182235,0.0011,2081.5,2081.2,5.02121986]
[1771059183626,0.0011,2081.5,2081.2,3.82]
[1771059183828,0.0011,2081.5,2081.2,5.02122731]
[1771059184042,2.66659531,2081.5,2081.2,3.82]
[1771059184930,2.66659531,2081.5,2081.1,1.2012856]
[1771059188218,3.86766989,2081.5,2081.0,2.466]
[1771059188398,2.66549531,2081.4,2081.0,6.286]
[1771059189512,2.66549531,2081.4,2081.0,3.82]
[1771059190509,0.0011,2081.5,2081.0,5.02134316]
[1771059193018,0.0011,2081.5,2081.0,18.01673972]
[1771059193599,0.0011,2081.5,2081.1,3.82]
[1771059195525,0.0011,2081.5,2081.1,5.02126268]
[1771059197246,2.66659531,2081.5,2081.1,3.82]
[1771059197452,2.66659531,2081.5,2081.1,5.02128388]
[1771059198227,0.0011,2081.5,2081.1,5.02128388]
[1771059198821,2.66659531,2081.5,2081.1,3.82]
[1771059199229,2.66549531,2081.4,2081.1,3.82]
[1771059199532,2.66549531,2081.4,2081.0,1.20131207]
[1771059201620,0.0011,2081.5,2081.0,1.20131207]
[1771059203453,0.0011,2081.5,2081.1,2.51849097]
[1771059203754,0.0011,2081.5,2081.0,1.20131207]
[1771059204140,0.0011,2081.5,2081.0,3.66731207]
[1771059204661,0.0011,2081.5,2081.1,15.51388753]
[1771059204837,0.0011,2081.7,2081.5,12.99539656]
[1771059205157,0.0011,2081.9,2081.5,15.51388753]
[1771059206059,0.0011,2081.9,2081.5,12.99539656]
[1771059206759,0.0011,2081.9,2081.6,1.20099923]
[1771059207360,0.0011,2082.0,2081.7,12.99539656]
[1771059207658,0.0011,2082.0,2081.7,15.46139656]
[1771059207863,2.66659531,2082.0,2081.5,3.82]
[1771059208434,2.66549531,2081.8,2081.1,2.466]
[1771059208947,2.66549531,2081.7,2081.2,1.20123005]
[1771059209867,1.20190572,2082.0,2081.2,14.19759593]
[1771059210065,1.20190572,2082.0,2081.2,16.7160869]
[1771059210235,3.86740103,2082.0,2081.2,16.7160869]
[1771059211072,3.86740103,2082.0,2081.2,3.71972102]
[1771059212142,3.86740103,2082.0,2081.3,2.47700925]
[1771059212143,0.0011,2082.0,2081.3,2.47700925]
[1771059212344,1.20187066,2082.0,2081.3,2.47700925]
[1771059212583,3.74289937,2082.0,2081.2,1.20123005]
[1771059213199,2.54211605,2082.0,2081.2,3.6782393]
[1771059213964,0.0011,2082.0,2081.4,2.47700925]
[1771059214165,2.87613585,2081.9,2081.5,2.466]
[1771059214363,2.87613585,2081.8,2081.5,2.466]
[1771059214659,0.0011,2082.0,2081.5,2.466]
[1771059214866,2.87542148,2081.9,2081.5,2.466]
[1771059215066,2.87542148,2081.8,2081.6,1.20099923]
[1771059215248,0.0011,2082.0,2081.7,3.82]
[1771059216441,0.0011,2082.1,2081.8,2.47700925]
[1771059217669,0.0011,2082.1,2082.0,1.20076849]
[1771059218373,0.0011,2082.1,2082.0,5.02076849]
[1771059218574,0.0011,2082.2,2082.0,1.20076849]
[1771059218869,0.0011,2082.3,2082.0,1.20076849]
[1771059219075,0.0011,2082.5,2082.0,1.20076849]
[1771059219371,0.0011,2082.9,2082.2,14.96802431]
[1771059219570,0.0011,2082.9,2082.4,1.20053784]
[1771059219752,0.0011,2082.9,2082.3,9.32660304]
[1771059219753,2.59144342,2082.9,2082.3,2.466]
[1771059219953,2.59144342,2082.9,2082.3,3.66658731]
[1771059220270,0.0011,2082.9,2082.3,3.66658731]
[1771059220854,0.0011,2082.9,2082.4,2.05044088]
[1771059221746,0.0011,2082.9,2082.5,1.20048019]
[1771059223188,0.0011,2082.9,2082.5,3.26259899]
[1771059223946,0.0011,2082.9,2082.6,2.05617825]
[1771059224180,0.0011,2082.9,2082.7,2.465]
[1771059224758,3.79013225,2083.7,2082.8,3.82]
[1771059224963,2.59034342,2083.6,2082.8,3.82]
[1771059225733,2.59144342,2083.5,2082.8,3.82]
[1771059225873,1.1999616,2083.4,2082.8,5.02029466]
[1771059226195,0.0011,2083.4,2082.8,5.02029466]
[1771059227088,0.0011,2083.3,2082.8,5.02029466]
[1771059227262,0.0011,2083.2,2082.8,5.02029466]
[1771059228681,0.0022,2083.2,2082.8,5.02029466]
[1771059228858,0.0011,2083.2,2082.8,7.04726934]
[1771059229974,0.0011,2083.2,2082.9,2.02122079]